fUSD/lending_fUSD_20260512
["ID","MTS","AMOUNT","RATE_DAILY","PERIOD"]
[422119899,1778581855000,-487.41,0.000308,7]
[422119898,1778581855000,-512.0,0.00030761,30]
[422119893,1778581855000,-1228.222,0.0003076,2]
[422119891,1778581855000,-156.0,0.00030669,30]
[422119894,1778581855000,-163.0,0.00030761,30]
[422119892,1778581855000,-169.0,0.00030669,30]
[422119895,1778581855000,-154.0,0.00030761,30]
[422119888,1778581855000,-264.35,0.000306,7]
[422119890,1778581855000,-158.0,0.00030669,30]
[422119897,1778581855000,-312.0,0.00030761,30]
[422119896,1778581855000,-155.0,0.00030761,30]
[422119889,1778581855000,-2337.83,0.000306,14]
[422119933,1778581855000,-171.25738021,0.00033191,2]
[422119989,1778581855000,-1001.192122,0.00036712,5]
[422119935,1778581855000,-1995.18204968,0.000334,2]
[422119965,1778581855000,-150.0,0.00035616,60]
[422119964,1778581855000,-762.0,0.00035511,30]
[422119967,1778581855000,-500.0,0.00035616,7]
[422119966,1778581855000,-1983.18,0.00035616,30]
[422119969,1778581855000,-500.0,0.00035616,7]
[422119981,1778581855000,-2337.83,0.000364,14]
[422119970,1778581855000,-613.08454086,0.00035616,7]
[422119972,1778581855000,-219.96131652,0.00035616,2]
[422119971,1778581855000,-500.0,0.00035616,5]
[422119975,1778581855000,-155.0,0.00035761,30]
[422119973,1778581855000,-158.0,0.00035669,30]
[422119980,1778581855000,-151.0,0.00036153,30]
[422119961,1778581855000,-500.0,0.00035068,2]
[422119974,1778581855000,-162.20899857,0.00035669,30]
[422119977,1778581855000,-512.0,0.00035761,30]
[422119978,1778581855000,-177.09,0.00035975,2]
[422119976,1778581855000,-312.0,0.00035761,30]
[422119983,1778581855000,-500.0,0.00036507,5]
[422119985,1778581855000,-179.19,0.00036638,120]
[422119982,1778581855000,-264.35,0.000364,30]
[422119984,1778581855000,-500.0,0.00036507,5]
[422119991,1778581855000,-312.0,0.00036761,30]
[422119990,1778581855000,-155.0,0.00036761,30]
[422119986,1778581855000,-188.01,0.00036652,120]
[422119987,1778581855000,-158.0,0.00036669,30]
[422119927,1778581855000,-500.0,0.00032795,2]
[422119979,1778581855000,-150.0,0.00035981,2]
[422119962,1778581855000,-468.0,0.00035511,30]
[422119988,1778581855000,-487.41,0.000367,7]
[422119963,1778581855000,-565.0,0.00035511,30]
[422119959,1778581855000,-1500.0,0.00034795,2]
[422119945,1778581855000,-1135.499,0.00033938,37]
[422119936,1778581855000,-657.7811158,0.000334,2]
[422119941,1778581855000,-155.0,0.00033761,30]
[422119937,1778581855000,-237.94527527,0.00033619,2]
[422119938,1778581855000,-158.0,0.00033669,30]
[422119940,1778581855000,-163.0,0.00033761,30]
[422119939,1778581855000,-156.0,0.00033669,30]
[422119943,1778581855000,-512.0,0.00033761,30]
[422119944,1778581855000,-151.27519008,0.00033896,112]
[422119942,1778581855000,-312.0,0.00033761,30]
[422119946,1778581855000,-157.059,0.00033938,37]
[422119948,1778581855000,-264.35,0.000341,30]
[422119934,1778581855000,-177.09,0.00033207,2]
[422119949,1778581855000,-151.0,0.00034182,7]
[422119947,1778581855000,-2337.83,0.000341,14]
[422119957,1778581855000,-312.0,0.00034761,30]
[422119968,1778581855000,-500.0,0.00035616,7]
[422119958,1778581855000,-512.0,0.00034761,30]
[422119953,1778581855000,-158.0,0.00034669,30]
[422119960,1778581855000,-150.0,0.00034932,60]
[422119956,1778581855000,-155.0,0.00034761,30]
[422119954,1778581855000,-156.0,0.00034669,30]
[422119955,1778581855000,-167.0,0.00034761,30]
[422119952,1778581855000,-177.09,0.00034591,2]
[422119950,1778581855000,-150.0,0.00034267,2]
[422119951,1778581855000,-487.41,0.000345,7]
[422120029,1778581856000,-300.0,0.00037262,2]
[422120026,1778581856000,-300.0,0.00037262,2]
[422120028,1778581856000,-527.54022817,0.00037262,2]
[422120027,1778581856000,-300.0,0.00037262,2]
[422120021,1778581856000,-300.00000001,0.00037262,2]
[422120019,1778581856000,-364.41022781,0.00037262,2]
[422120024,1778581856000,-604.21547136,0.00037262,2]
[422120030,1778581856000,-1066.50381929,0.00037262,2]
[422120022,1778581856000,-300.0,0.00037262,2]
[422120025,1778581856000,-300.00000001,0.00037262,2]
[422120023,1778581856000,-300.0,0.00037262,2]
[422120041,1778581856000,-300.0,0.00037262,2]
[422120040,1778581856000,-1911.66155628,0.00037262,2]
[422120038,1778581856000,-300.45062341,0.00037262,2]
[422120039,1778581856000,-300.0,0.00037262,2]
[422120042,1778581856000,-343.84381003,0.00037262,2]
[422120032,1778581856000,-590.52830036,0.00037262,2]
[422120033,1778581856000,-725.78568352,0.00037262,2]
[422120034,1778581856000,-300.0,0.00037262,2]
[422120037,1778581856000,-300.0,0.00037262,2]
[422120036,1778581856000,-300.0,0.00037262,2]
[422120035,1778581856000,-301.67321972,0.00037262,2]
[422120020,1778581856000,-300.0,0.00037262,2]
[422120043,1778581856000,-526.68525168,0.00037262,2]
[422120031,1778581856000,-893.04482543,0.00037262,2]
[422120018,1778581856000,-492.49408754,0.00037262,2]
[422120000,1778581856000,-170.54795026,0.000372,120]
[422120011,1778581856000,-300.0,0.00037262,2]
[422120045,1778581856000,-300.0,0.00037262,2]
[422119993,1778581856000,-167.75,0.00036946,13]
[422119992,1778581856000,-512.0,0.00036761,30]
[422119999,1778581856000,-368.43,0.00037185,7]
[422119996,1778581856000,-161.00718156,0.00036986,60]
[422119998,1778581856000,-1002.10346774,0.00037055,5]
[422119997,1778581856000,-1000.0,0.00037055,5]
[422119994,1778581856000,-195.6175,0.00036946,13]
[422120001,1778581856000,-300.0,0.00037262,2]
[422119995,1778581856000,-500.0,0.00036954,5]
[422120006,1778581856000,-300.0,0.00037262,2]
[422120015,1778581856000,-300.0,0.00037262,2]
[422120003,1778581856000,-526.45624892,0.00037262,2]
[422120002,1778581856000,-300.0,0.00037262,2]
[422120004,1778581856000,-1094.29459015,0.00037262,2]
[422120017,1778581856000,-300.0,0.00037262,2]
[422120008,1778581856000,-300.0,0.00037262,2]
[422120016,1778581856000,-300.0,0.00037262,2]
[422120007,1778581856000,-300.0,0.00037262,2]
[422120009,1778581856000,-300.0,0.00037262,2]
[422120010,1778581856000,-300.0,0.00037262,2]
[422120012,1778581856000,-300.0,0.00037262,2]
[422120014,1778581856000,-300.0,0.00037262,2]
[422120013,1778581856000,-300.0,0.00037262,2]
[422120005,1778581856000,-300.0,0.00037262,2]
[422120048,1778581856000,-300.00000001,0.00037262,2]
[422120055,1778581856000,-300.0,0.00037262,2]
[422120089,1778581856000,-604.21547136,0.00037262,2]
[422120079,1778581856000,-300.0,0.00037262,2]
[422120077,1778581856000,-300.0,0.00037262,2]
[422120078,1778581856000,-300.0,0.00037262,2]
[422120091,1778581856000,-300.0,0.00037262,2]
[422120080,1778581856000,-300.0,0.00037262,2]
[422120082,1778581856000,-300.00000001,0.00037262,2]
[422120085,1778581856000,-492.49408754,0.00037262,2]
[422120084,1778581856000,-300.0,0.00037262,2]
[422120083,1778581856000,-300.0,0.00037262,2]
[422120087,1778581856000,-300.0,0.00037262,2]
[422120088,1778581856000,-300.0,0.00037262,2]
[422120075,1778581856000,-300.0,0.00037262,2]
[422120086,1778581856000,-300.0,0.00037262,2]
[422120094,1778581856000,-893.04482543,0.00037262,2]
[422120092,1778581856000,-527.54022817,0.00037262,2]
[422120096,1778581856000,-300.0,0.00037262,2]
[422120093,1778581856000,-1066.50381929,0.00037262,2]
[422120095,1778581856000,-725.78568352,0.00037262,2]
[422120097,1778581856000,-301.67321972,0.00037262,2]
[422120100,1778581856000,-300.45062341,0.00037262,2]
[422120098,1778581856000,-376.82623051,0.00037262,2]
[422120099,1778581856000,-300.0,0.00037262,2]
[422120101,1778581856000,-300.0,0.00037262,2]
[422120046,1778581856000,-1146.71946024,0.00037262,2]
[422120090,1778581856000,-300.0,0.00037262,2]
[422120076,1778581856000,-300.0,0.00037262,2]
[422120081,1778581856000,-300.0,0.00037262,2]
[422120072,1778581856000,-1094.29459015,0.00037262,2]
[422120050,1778581856000,-300.0,0.00037262,2]
[422120044,1778581856000,-300.0,0.00037262,2]
[422120052,1778581856000,-300.0,0.00037262,2]
[422120047,1778581856000,-309.46605895,0.00037262,2]
[422120054,1778581856000,-310.77293504,0.00037262,2]
[422120051,1778581856000,-1809.24690158,0.00037262,2]
[422120049,1778581856000,-864.10865205,0.00037262,2]
[422120053,1778581856000,-300.0,0.00037262,2]
[422120074,1778581856000,-300.0,0.00037262,2]
[422120067,1778581856000,-483.88780455,0.00037262,2]
[422120068,1778581856000,-309.70196001,0.00037262,2]
[422120058,1778581856000,-300.0,0.00037262,2]
[422120056,1778581856000,-300.0,0.00037262,2]
[422120057,1778581856000,-463.6616139,0.00037262,2]
[422120073,1778581856000,-300.0,0.00037262,2]
[422120062,1778581856000,-300.0,0.00037262,2]
[422120066,1778581856000,-300.0,0.00037262,2]
[422120063,1778581856000,-300.0,0.00037262,2]
[422120060,1778581856000,-300.0,0.00037262,2]
[422120061,1778581856000,-451.72868137,0.00037262,2]
[422120065,1778581856000,-300.0,0.00037262,2]
[422120059,1778581856000,-576.93890108,0.00037262,2]
[422120069,1778581856000,-300.0,0.00037262,2]
[422120070,1778581856000,-305.55843555,0.00037262,2]
[422120071,1778581856000,-300.0,0.00037262,2]
[422120064,1778581856000,-300.0,0.00037262,2]
[422120142,1778581857000,-2337.83,0.000377,14]
[422120143,1778581857000,-181.0,0.00037753,120]
[422120137,1778581857000,-195.6175,0.00037494,13]
[422120144,1778581857000,-1444.0,0.00037753,120]
[422120131,1778581857000,-300.0,0.00037262,2]
[422120132,1778581857000,-289.55339026,0.000373,5]
[422120140,1778581857000,-1500.0,0.00037603,5]
[422120139,1778581857000,-171.25738021,0.00037546,2]
[422120138,1778581857000,-1000.0,0.00037502,5]
[422120136,1778581857000,-859.68,0.00037372,7]
[422120153,1778581857000,-195.6175,0.00038041,13]
[422120141,1778581857000,-264.35,0.000377,30]
[422120145,1778581857000,-150.0,0.0003778,2]
[422120163,1778581857000,-1845.5,0.00038329,120]
[422120152,1778581857000,-160.0,0.00038,120]
[422120148,1778581857000,-5000.0,0.00037919,2]
[422120150,1778581857000,-5000.0,0.00037919,2]
[422120147,1778581857000,-5026.19770332,0.00037919,2]
[422120146,1778581857000,-313.6251751,0.00037848,5]
[422120149,1778581857000,-5000.0,0.00037919,2]
[422120155,1778581857000,-275.32714793,0.000381,33]
[422120154,1778581857000,-1500.0,0.0003805,5]
[422120159,1778581857000,-508.68,0.00038263,2]
[422120157,1778581857000,-151.0,0.00038125,30]
[422120156,1778581857000,-487.41,0.000381,7]
[422120134,1778581857000,-177.09,0.00037358,2]
[422120151,1778581857000,-5000.0,0.00037919,2]
[422120135,1778581857000,-661.29,0.00037372,7]
[422120104,1778581857000,-300.0,0.00037262,2]
[422120133,1778581857000,-500.0,0.000373,5]
[422120102,1778581857000,-300.0,0.00037262,2]
[422120103,1778581857000,-300.0,0.00037262,2]
[422120105,1778581857000,-853.86030012,0.00037262,2]
[422120106,1778581857000,-300.0,0.00037262,2]
[422120111,1778581857000,-300.0,0.00037262,2]
[422120114,1778581857000,-309.46605895,0.00037262,2]
[422120109,1778581857000,-526.68525168,0.00037262,2]
[422120108,1778581857000,-300.0,0.00037262,2]
[422120110,1778581857000,-343.84381003,0.00037262,2]
[422120116,1778581857000,-864.10865205,0.00037262,2]
[422120113,1778581857000,-1146.71946024,0.00037262,2]
[422120107,1778581857000,-1911.66155628,0.00037262,2]
[422120115,1778581857000,-300.0,0.00037262,2]
[422120112,1778581857000,-300.0,0.00037262,2]
[422120118,1778581857000,-1809.24690158,0.00037262,2]
[422120128,1778581857000,-451.72868137,0.00037262,2]
[422120119,1778581857000,-300.0,0.00037262,2]
[422120129,1778581857000,-300.0,0.00037262,2]
[422120121,1778581857000,-310.77293504,0.00037262,2]
[422120122,1778581857000,-300.0,0.00037262,2]
[422120120,1778581857000,-300.0,0.00037262,2]
[422120124,1778581857000,-463.6616139,0.00037262,2]
[422120117,1778581857000,-300.0,0.00037262,2]
[422120123,1778581857000,-300.0,0.00037262,2]
[422120125,1778581857000,-300.0,0.00037262,2]
[422120127,1778581857000,-300.0,0.00037262,2]
[422120126,1778581857000,-576.93890108,0.00037262,2]
[422120130,1778581857000,-300.0,0.00037262,2]
[422120162,1778581857000,-1845.5,0.00038329,120]
[422120158,1778581857000,-2000.0,0.00038151,5]
[422120161,1778581857000,-1649.0,0.00038329,120]
[422120200,1778581857000,-769.54,0.00038568,2]
[422120193,1778581857000,-550.0,0.00038367,5]
[422120199,1778581857000,-769.54,0.00038568,2]
[422120197,1778581857000,-769.54,0.00038566,2]
[422120198,1778581857000,-769.54,0.00038566,2]
[422120192,1778581857000,-450.0,0.00038364,5]
[422120196,1778581857000,-48463.4298,0.00038547,30]
[422120202,1778581857000,-769.55,0.0003857,2]
[422120204,1778581857000,-769.54,0.0003857,2]
[422120205,1778581857000,-2003.94323449,0.00038598,5]
[422120211,1778581857000,-200.0,0.00038918,6]
[422120206,1778581857000,-500.0,0.000386,5]
[422120208,1778581857000,-1562.0,0.00038904,30]
[422120203,1778581857000,-769.54,0.0003857,2]
[422120213,1778581857000,-11066.37,0.00039,30]
[422120214,1778581857000,-1000.0,0.00039026,120]
[422120207,1778581857000,-297.31647382,0.00038698,5]
[422120210,1778581857000,-200.0,0.00038913,6]
[422120212,1778581857000,-200.0,0.00038918,6]
[422120209,1778581857000,-200.0,0.00038913,6]
[422120216,1778581857000,-2337.83,0.000391,14]
[422120215,1778581857000,-264.35,0.000391,30]
[422120219,1778581857000,-235.67013612,0.000392,30]
[422120217,1778581857000,-564.52604619,0.00039199,120]
[422120218,1778581857000,-235.67013612,0.000392,30]
[422120222,1778581857000,-195.6175,0.00039411,13]
[422120221,1778581857000,-1815.08,0.00039319,120]
[422120194,1778581857000,-650.0,0.0003837,5]
[422120195,1778581857000,-701.35194092,0.00038373,5]
[422120220,1778581857000,-235.67013612,0.000392,30]
[422120201,1778581857000,-769.54,0.00038568,2]
[422120190,1778581857000,-250.0,0.00038359,5]
[422120160,1778581857000,-1649.0,0.00038329,120]
[422120166,1778581857000,-1000.0,0.00038356,7]
[422120176,1778581857000,-500.0,0.00038356,2]
[422120165,1778581857000,-507.58,0.00038356,2]
[422120168,1778581857000,-931.8569684,0.00038356,7]
[422120167,1778581857000,-1000.0,0.00038356,7]
[422120170,1778581857000,-500.0,0.00038356,2]
[422120172,1778581857000,-500.0,0.00038356,2]
[422120171,1778581857000,-500.0,0.00038356,2]
[422120169,1778581857000,-500.0,0.00038356,2]
[422120175,1778581857000,-299.42619551,0.00038356,2]
[422120173,1778581857000,-500.0,0.00038356,2]
[422120174,1778581857000,-500.0,0.00038356,2]
[422120164,1778581857000,-158.82843331,0.00038329,120]
[422120180,1778581857000,-403.63901603,0.00038356,2]
[422120177,1778581857000,-500.0,0.00038356,2]
[422120191,1778581857000,-350.0,0.00038362,5]
[422120186,1778581857000,-659.03,0.00038356,2]
[422120185,1778581857000,-659.03,0.00038356,2]
[422120181,1778581857000,-659.03,0.00038356,2]
[422120178,1778581857000,-500.0,0.00038356,2]
[422120188,1778581857000,-1562.0,0.00038356,30]
[422120183,1778581857000,-659.03,0.00038356,2]
[422120187,1778581857000,-659.03,0.00038356,2]
[422120179,1778581857000,-500.0,0.00038356,2]
[422120189,1778581857000,-150.0,0.00038356,5]
[422120182,1778581857000,-659.03,0.00038356,2]
[422120184,1778581857000,-659.03,0.00038356,2]
[422120259,1778581858000,-216.98009403,0.00040355,60]
[422120257,1778581858000,-5000.12345678,0.0004,7]
[422120253,1778581858000,-120638.92524699,0.0003998,5]
[422120256,1778581858000,-10000.0213761,0.0004,6]
[422120255,1778581858000,-501.512,0.0004,30]
[422120260,1778581858000,-500.0,0.00040355,60]
[422120265,1778581858000,-1336.00320195,0.00040643,2]
[422120264,1778581858000,-1815.17,0.00040626,120]
[422120254,1778581858000,-1562.0,0.0004,30]
[422120262,1778581858000,-1562.0,0.00040548,30]
[422120261,1778581858000,-4337.40954164,0.00040387,12]
[422120278,1778581858000,-150.0,0.00040822,60]
[422120263,1778581858000,-1000.0,0.00040626,120]
[422120267,1778581858000,-1500.0,0.000408,7]
[422120279,1778581858000,-961.0,0.00040822,60]
[422120268,1778581858000,-150.0,0.00040822,60]
[422120247,1778581858000,-53424.31343183,0.000398,30]
[422120277,1778581858000,-961.0,0.00040822,60]
[422120275,1778581858000,-961.0,0.00040822,60]
[422120270,1778581858000,-500.0,0.00040822,60]
[422120266,1778581858000,-564.52604619,0.00040647,120]
[422120272,1778581858000,-513.31108128,0.00040822,60]
[422120271,1778581858000,-150.0,0.00040822,60]
[422120269,1778581858000,-150.0,0.00040822,60]
[422120258,1778581858000,-1815.17,0.00040299,120]
[422120250,1778581858000,-564.52604619,0.00039923,120]
[422120244,1778581858000,-500.0,0.00039726,15]
[422120248,1778581858000,-157.33244371,0.0003989,2]
[422120276,1778581858000,-150.0,0.00040822,60]
[422120226,1778581858000,-500.0,0.00039726,15]
[422120224,1778581858000,-1815.17,0.00039646,120]
[422120223,1778581858000,-1562.0,0.00039452,30]
[422120225,1778581858000,-150.0,0.00039669,2]
[422120227,1778581858000,-500.0,0.00039726,15]
[422120229,1778581858000,-500.0,0.00039726,15]
[422120233,1778581858000,-500.0,0.00039726,15]
[422120236,1778581858000,-500.0,0.00039726,15]
[422120231,1778581858000,-500.0,0.00039726,15]
[422120234,1778581858000,-500.0,0.00039726,15]
[422120239,1778581858000,-500.0,0.00039726,15]
[422120235,1778581858000,-500.0,0.00039726,15]
[422120237,1778581858000,-500.0,0.00039726,15]
[422120240,1778581858000,-500.0,0.00039726,15]
[422120228,1778581858000,-500.0,0.00039726,15]
[422120232,1778581858000,-500.0,0.00039726,15]
[422120238,1778581858000,-500.0,0.00039726,15]
[422120242,1778581858000,-500.0,0.00039726,15]
[422120241,1778581858000,-331.67033388,0.00039726,15]
[422120252,1778581858000,-1815.17,0.00039972,120]
[422120243,1778581858000,-500.0,0.00039726,15]
[422120246,1778581858000,-300.0,0.00039726,120]
[422120249,1778581858000,-15572.021764,0.000399,120]
[422120245,1778581858000,-499.99999999,0.00039726,15]
[422120251,1778581858000,-1000.0,0.0003997,5]
[422120230,1778581858000,-500.0,0.00039726,15]
[422120273,1778581858000,-150.0,0.00040822,60]
[422120280,1778581858000,-200.0,0.00040822,60]
[422120312,1778581858000,-500.0,0.00040822,2]
[422120309,1778581858000,-500.0,0.00040822,2]
[422120310,1778581858000,-500.0,0.00040822,2]
[422120313,1778581858000,-961.0,0.00040822,60]
[422120314,1778581858000,-500.0,0.00040822,2]
[422120316,1778581858000,-961.0,0.00040822,60]
[422120318,1778581858000,-961.0,0.00040822,60]
[422120317,1778581858000,-961.0,0.00040822,60]
[422120320,1778581858000,-973.23043323,0.00040822,60]
[422120319,1778581858000,-961.0,0.00040822,60]
[422120323,1778581858000,-200.0,0.000409,14]
[422120322,1778581858000,-677.43125542,0.000409,120]
[422120329,1778581858000,-2500.0,0.00041,30]
[422120324,1778581858000,-80245.5621846,0.00040949,2]
[422120325,1778581858000,-362815.7405069,0.00040949,2]
[422120327,1778581858000,-1815.17,0.00040953,120]
[422120328,1778581858000,-163.80098366,0.0004099,120]
[422120326,1778581858000,-1143.8001277,0.00040949,2]
[422120330,1778581858000,-55000.0,0.00041,90]
[422120332,1778581858000,-188.01,0.0004109,120]
[422120333,1778581858000,-186.08,0.00041096,120]
[422120334,1778581858000,-161.01,0.00041096,60]
[422120331,1778581858000,-1448.6,0.00041041,120]
[422120335,1778581858000,-161.01,0.00041096,120]
[422120274,1778581858000,-268.87677318,0.00040822,60]
[422120311,1778581858000,-500.0,0.00040822,2]
[422120307,1778581858000,-961.0,0.00040822,60]
[422120321,1778581858000,-557.21123289,0.00040867,2]
[422120306,1778581858000,-500.0,0.00040822,2]
[422120282,1778581858000,-150.0,0.00040822,60]
[422120308,1778581858000,-500.0,0.00040822,2]
[422120284,1778581858000,-150.0,0.00040822,60]
[422120285,1778581858000,-961.0,0.00040822,60]
[422120281,1778581858000,-961.0,0.00040822,60]
[422120283,1778581858000,-961.0,0.00040822,60]
[422120289,1778581858000,-961.0,0.00040822,60]
[422120286,1778581858000,-200.0,0.00040822,60]
[422120290,1778581858000,-500.0,0.00040822,60]
[422120288,1778581858000,-500.0,0.00040822,60]
[422120295,1778581858000,-961.0,0.00040822,60]
[422120297,1778581858000,-961.0,0.00040822,60]
[422120296,1778581858000,-961.0,0.00040822,60]
[422120287,1778581858000,-961.0,0.00040822,60]
[422120292,1778581858000,-503.52293091,0.00040822,60]
[422120304,1778581858000,-500.0,0.00040822,2]
[422120305,1778581858000,-500.0,0.00040822,2]
[422120301,1778581858000,-500.0,0.00040822,2]
[422120303,1778581858000,-500.0,0.00040822,2]
[422120302,1778581858000,-961.0,0.00040822,60]
[422120300,1778581858000,-500.0,0.00040822,2]
[422120315,1778581858000,-530.77702258,0.00040822,2]
[422120294,1778581858000,-961.0,0.00040822,60]
[422120293,1778581858000,-961.0,0.00040822,60]
[422120291,1778581858000,-961.0,0.00040822,60]
[422120298,1778581858000,-961.0,0.00040822,60]
[422120299,1778581858000,-961.0,0.00040822,60]
[422120390,1778581859000,-640.08,0.00041387,30]
[422120389,1778581859000,-569.71,0.00041387,30]
[422120379,1778581859000,-500.0,0.00041387,120]
[422120374,1778581859000,-500.0,0.00041387,120]
[422120375,1778581859000,-424.63513797,0.00041387,120]
[422120371,1778581859000,-50000.0,0.00041387,40]
[422120373,1778581859000,-500.0,0.00041387,120]
[422120368,1778581859000,-500.0,0.00041387,120]
[422120372,1778581859000,-500.0,0.00041387,120]
[422120377,1778581859000,-500.0,0.00041387,120]
[422120367,1778581859000,-500.0,0.00041387,120]
[422120376,1778581859000,-261.6,0.00041387,30]
[422120370,1778581859000,-437.89249042,0.00041387,120]
[422120378,1778581859000,-500.0,0.00041387,120]
[422120394,1778581859000,-640.08,0.00041387,30]
[422120382,1778581859000,-500.0,0.00041387,120]
[422120386,1778581859000,-581.19,0.00041387,30]
[422120387,1778581859000,-393.75,0.00041387,30]
[422120385,1778581859000,-479.29,0.00041387,30]
[422120384,1778581859000,-229024.0,0.00041387,60]
[422120381,1778581859000,-500.0,0.00041387,120]
[422120388,1778581859000,-150.0,0.00041387,120]
[422120383,1778581859000,-457.051853,0.00041387,120]
[422120391,1778581859000,-150.0,0.00041387,120]
[422120392,1778581859000,-169.20479485,0.00041387,120]
[422120393,1778581859000,-569.68,0.00041387,30]
[422120397,1778581859000,-571.93,0.00041387,30]
[422120369,1778581859000,-500.0,0.00041387,120]
[422120380,1778581859000,-500.0,0.00041387,120]
[422120363,1778581859000,-634.30838947,0.00041387,120]
[422120339,1778581859000,-500.0,0.00041285,120]
[422120396,1778581859000,-530.94,0.00041387,30]
[422120342,1778581859000,-725.9617425,0.00041286,2]
[422120336,1778581859000,-200.0,0.00041125,120]
[422120338,1778581859000,-500.0,0.00041285,7]
[422120337,1778581859000,-1815.17,0.00041279,120]
[422120340,1778581859000,-500.0,0.00041285,120]
[422120341,1778581859000,-61698.7759135,0.00041286,2]
[422120343,1778581859000,-13938.1898354,0.00041286,2]
[422120345,1778581859000,-151.0,0.00041338,120]
[422120346,1778581859000,-158.0,0.00041338,120]
[422120344,1778581859000,-154.0,0.00041338,120]
[422120352,1778581859000,-564.52604619,0.00041371,120]
[422120347,1778581859000,-156.0,0.00041338,120]
[422120353,1778581859000,-526.89097645,0.00041371,120]
[422120362,1778581859000,-500.0,0.00041387,120]
[422120349,1778581859000,-155.0,0.00041338,120]
[422120350,1778581859000,-640.09317243,0.0004134,10]
[422120348,1778581859000,-169.0,0.00041338,120]
[422120351,1778581859000,-232.19,0.0004137,120]
[422120356,1778581859000,-152.18,0.00041387,120]
[422120366,1778581859000,-341.63517442,0.00041387,120]
[422120359,1778581859000,-500.0,0.00041387,70]
[422120355,1778581859000,-100000.0,0.00041387,30]
[422120358,1778581859000,-500.0,0.00041387,120]
[422120357,1778581859000,-190.96,0.00041387,120]
[422120361,1778581859000,-267.17668758,0.00041387,70]
[422120364,1778581859000,-100000.0,0.00041387,30]
[422120365,1778581859000,-39587.0,0.00041387,109]
[422120360,1778581859000,-500.0,0.00041387,70]
[422120354,1778581859000,-1999.78,0.00041387,120]
[422120403,1778581859000,-571.93,0.00041387,30]
[422120432,1778581859000,-271.94,0.00041536,11]
[422120401,1778581859000,-569.68,0.00041387,30]
[422120442,1778581859000,-6164.51187658,0.00041644,120]
[422120443,1778581859000,-526.89097644,0.00041693,120]
[422120431,1778581859000,-526.89097644,0.00041532,120]
[422120434,1778581859000,-459.35398862,0.00041558,7]
[422120436,1778581859000,-505.18613746,0.00041558,120]
[422120437,1778581859000,-23406.34319029,0.0004158,2]
[422120439,1778581859000,-200.0,0.000416,15]
[422120433,1778581859000,-254.52,0.00041536,11]
[422120441,1778581859000,-697.57,0.0004163,2]
[422120435,1778581859000,-500.0,0.00041558,120]
[422120440,1778581859000,-1815.17,0.00041606,120]
[422120445,1778581859000,-200.0,0.000417,15]
[422120456,1778581859000,-1000.0,0.000419,2]
[422120444,1778581859000,-1448.6,0.00041694,120]
[422120446,1778581859000,-1073.2979572,0.0004178,120]
[422120448,1778581859000,-850.0,0.000418,15]
[422120453,1778581859000,-1000.0,0.000419,2]
[422120455,1778581859000,-1000.0,0.000419,2]
[422120450,1778581859000,-330.0,0.00041836,92]
[422120451,1778581859000,-391.03726937,0.00041888,120]